[Event "Early-Titled-Tuesday-Blitz-May-14-2024"]
[Site "Chess.com"]
[Date "2024.05.14"]
[Round "2"]
[White "emiliocordova"]
[Black "valik3504"]
[Result "0-1"]
[WhiteElo "2891"]
[BlackElo "2537"]
[TimeControl "180+1"]
[EndTime "8:18:19 PDT"]
[Termination "valik3504 won by resignation"]

1. d4 {[%clk 0:03:00.9]} 1... Nf6 {[%clk 0:02:56.9]} 2. Bg5 {[%clk 0:03:00.5]}
2... d5 {[%clk 0:02:54.4]} 3. Nd2 {[%clk 0:02:59.5]} 3... e6 {[%clk 0:02:46.8]}
4. e3 {[%clk 0:02:58.4]} 4... Nbd7 {[%clk 0:02:41.2]} 5. c3 {[%clk 0:02:57.1]}
5... Bd6 {[%clk 0:02:38.2]} 6. Bd3 {[%clk 0:02:54]} 6... h6 {[%clk 0:02:38.1]}
7. Bh4 {[%clk 0:02:53.4]} 7... c6 {[%clk 0:02:37.6]} 8. Ngf3 {[%clk 0:02:49]}
8... Qc7 {[%clk 0:02:37.5]} 9. O-O {[%clk 0:02:48.6]} 9... O-O {[%clk 0:02:36]}
10. e4 {[%clk 0:02:48.1]} 10... dxe4 {[%clk 0:02:21.7]} 11. Nxe4 {[%clk
0:02:49]} 11... Nxe4 {[%clk 0:02:21.3]} 12. Bxe4 {[%clk 0:02:49.9]} 12... b6
{[%clk 0:02:20.3]} 13. Qe2 {[%clk 0:02:29.2]} 13... Bb7 {[%clk 0:02:17.4]} 14.
Rad1 {[%clk 0:02:28.6]} 14... a5 {[%clk 0:01:35.7]} 15. Rfe1 {[%clk 0:02:26.2]}
15... Rfe8 {[%clk 0:01:29.5]} 16. Bd3 {[%clk 0:02:17.2]} 16... c5 {[%clk
0:01:24.9]} 17. Bb5 {[%clk 0:02:07.8]} 17... Bc6 {[%clk 0:00:53.3]} 18. Bxc6
{[%clk 0:02:00.1]} 18... Qxc6 {[%clk 0:00:52.4]} 19. Ne5 {[%clk 0:02:00.7]}
19... Bxe5 {[%clk 0:00:21.3]} 20. dxe5 {[%clk 0:02:01.6]} 20... Nf8 {[%clk
0:00:21.9]} 21. c4 {[%clk 0:01:54.9]} 21... Qc7 {[%clk 0:00:19.8]} 22. Rd6
{[%clk 0:01:53.6]} 22... Reb8 {[%clk 0:00:12.5]} 23. Red1 {[%clk 0:01:50.5]}
23... a4 {[%clk 0:00:11.2]} 24. Qd3 {[%clk 0:01:43.9]} 24... Qb7 {[%clk
0:00:10.1]} 25. Bd8 {[%clk 0:01:26.8]} 25... b5 {[%clk 0:00:07.4]} 26. Bb6
{[%clk 0:01:26.1]} 26... Ra6 {[%clk 0:00:02.9]} 27. Bxc5 {[%clk 0:01:24.9]}
27... bxc4 {[%clk 0:00:03.3]} 28. Qxc4 {[%clk 0:01:24.2]} 28... Ra5 {[%clk
0:00:03.7]} 29. Rd8 {[%clk 0:01:16.7]} 29... Raa8 {[%clk 0:00:03.7]} 30. Rxb8
{[%clk 0:01:11.1]} 30... Rxb8 {[%clk 0:00:03.9]} 31. Ba3 {[%clk 0:01:07.8]}
31... Ra8 {[%clk 0:00:02.4]} 32. h4 {[%clk 0:01:06.7]} 32... Ng6 {[%clk
0:00:01.9]} 33. Qd4 {[%clk 0:01:05.1]} 33... Qc7 {[%clk 0:00:02]} 34. Bd6 {[%clk
0:01:03]} 34... Qc2 {[%clk 0:00:02.3]} 35. h5 {[%clk 0:01:02.9]} 35... Nf4
{[%clk 0:00:02.2]} 36. Qd2 {[%clk 0:00:57]} 36... Qe4 {[%clk 0:00:01.4]} 37. f3
{[%clk 0:00:57.1]} 37... Qf5 {[%clk 0:00:01.7]} 38. g4 {[%clk 0:00:56.3]} 38...
Qg5 {[%clk 0:00:01.8]} 39. Bc5 {[%clk 0:00:43.7]} 39... Nh3+ {[%clk 0:00:01.5]}
40. Kg2 {[%clk 0:00:42.5]} 40... Nf4+ {[%clk 0:00:02]} 41. Kg3 {[%clk
0:00:42.3]} 41... Nxh5+ {[%clk 0:00:02.4]} 42. Kg2 {[%clk 0:00:29.4]} 42... Nf4+
{[%clk 0:00:02.2]} 43. Kf1 {[%clk 0:00:29.2]} 43... Qxe5 {[%clk 0:00:01.6]} 44.
Bd6 {[%clk 0:00:28.9]} 44... Qb5+ {[%clk 0:00:01.8]} 45. Kf2 {[%clk 0:00:29]}
45... Nd5 {[%clk 0:00:01.8]} 46. Qe2 {[%clk 0:00:28.2]} 46... Qb6+ {[%clk
0:00:02.3]} 0-1

[Event "Early-Titled-Tuesday-Blitz-May-14-2024"]
[Site "Chess.com"]
[Date "2024.05.14"]
[Round "2"]
[White "gmcorrales"]
[Black "AlphaGoosee"]
[Result "1-0"]
[WhiteElo "2951"]
[BlackElo "2638"]
[TimeControl "180+1"]
[EndTime "8:18:20 PDT"]
[Termination "gmcorrales won by resignation"]

1. d4 {[%clk 0:03:00.9]} 1... d5 {[%clk 0:02:59.7]} 2. c4 {[%clk 0:02:59.4]}
2... dxc4 {[%clk 0:02:59.8]} 3. e3 {[%clk 0:02:58.8]} 3... Nf6 {[%clk 0:03:00]}
4. Nf3 {[%clk 0:02:57.1]} 4... e6 {[%clk 0:02:59.8]} 5. Bxc4 {[%clk 0:02:57.1]}
5... c5 {[%clk 0:02:59.1]} 6. O-O {[%clk 0:02:57]} 6... a6 {[%clk 0:02:58.6]} 7.
a4 {[%clk 0:02:56.4]} 7... Nc6 {[%clk 0:02:58.2]} 8. dxc5 {[%clk 0:02:55.8]}
8... Qc7 {[%clk 0:02:55.7]} 9. Nbd2 {[%clk 0:02:46.4]} 9... Bxc5 {[%clk
0:02:55.5]} 10. Nb3 {[%clk 0:02:46.1]} 10... Be7 {[%clk 0:02:49.2]} 11. Bd2
{[%clk 0:02:45.6]} 11... O-O {[%clk 0:02:48.5]} 12. Rc1 {[%clk 0:02:45.3]} 12...
e5 {[%clk 0:02:42.4]} 13. Na5 {[%clk 0:02:34.9]} 13... e4 {[%clk 0:02:34.8]} 14.
Nxc6 {[%clk 0:02:33.1]} 14... bxc6 {[%clk 0:02:31.7]} 15. Nd4 {[%clk 0:02:29.4]}
15... c5 {[%clk 0:02:12.1]} 16. Ne2 {[%clk 0:02:27]} 16... Bg4 {[%clk
0:02:04.9]} 17. h3 {[%clk 0:02:25.4]} 17... Bh5 {[%clk 0:01:54.3]} 18. Qc2
{[%clk 0:02:24.6]} 18... Bd6 {[%clk 0:01:49]} 19. Nf4 {[%clk 0:02:22.3]} 19...
Bxf4 {[%clk 0:01:38.1]} 20. exf4 {[%clk 0:02:23.2]} 20... Bg6 {[%clk 0:01:37.2]}
21. Be3 {[%clk 0:02:22.4]} 21... Rfc8 {[%clk 0:01:30.1]} 22. Rfd1 {[%clk
0:02:19.8]} 22... Qb7 {[%clk 0:01:17.6]} 23. b3 {[%clk 0:02:19]} 23... Rab8
{[%clk 0:01:15.4]} 24. Qd2 {[%clk 0:02:18.2]} 24... h5 {[%clk 0:01:12]} 25. Qd6
{[%clk 0:02:16.5]} 25... Rc6 {[%clk 0:01:09.9]} 26. Qe5 {[%clk 0:02:15.9]} 26...
Re8 {[%clk 0:01:06.7]} 27. Qc3 {[%clk 0:02:03.7]} 27... h4 {[%clk 0:01:01.5]}
28. Rd2 {[%clk 0:02:02.8]} 28... Bh5 {[%clk 0:00:54.1]} 29. Rcc2 {[%clk
0:01:52.3]} 29... Rb8 {[%clk 0:00:52.6]} 30. Qa5 {[%clk 0:01:51.9]} 30... Qc8
{[%clk 0:00:46.1]} 31. Qc3 {[%clk 0:01:43.4]} 31... Bf3 {[%clk 0:00:26.6]} 32.
Qe5 {[%clk 0:01:39.7]} 32... Ng4 {[%clk 0:00:22.3]} 33. Qh5 {[%clk 0:01:05.6]}
33... g6 {[%clk 0:00:14.3]} 34. Qg5 {[%clk 0:01:03.5]} 34... Nxe3 {[%clk
0:00:14.1]} 35. fxe3 {[%clk 0:01:04.4]} 35... Bh5 {[%clk 0:00:13.4]} 36. Rd5
{[%clk 0:00:57]} 36... Kg7 {[%clk 0:00:12.9]} 37. Rcd2 {[%clk 0:00:55.7]} 37...
Rb7 {[%clk 0:00:11.4]} 38. Qxh4 {[%clk 0:00:54.2]} 38... Rb4 {[%clk 0:00:05.9]}
39. g4 {[%clk 0:00:53.4]} 39... Qb7 {[%clk 0:00:03.3]} 40. gxh5 {[%clk
0:00:52.3]} 40... Rxc4 {[%clk 0:00:03.4]} 41. bxc4 {[%clk 0:00:53.2]} 41... Qb3
{[%clk 0:00:02.8]} 42. h6+ {[%clk 0:00:51]} 42... Kh7 {[%clk 0:00:02.6]} 43. Kf2
{[%clk 0:00:43.1]} 43... Qxc4 {[%clk 0:00:02.6]} 44. Qe7 {[%clk 0:00:42.2]}
44... Kxh6 {[%clk 0:00:01.1]} 45. Qf8+ {[%clk 0:00:41.3]} 45... Kh7 {[%clk
0:00:01]} 46. Qxf7+ {[%clk 0:00:41.3]} 46... Kh6 {[%clk 0:00:01.9]} 47. Qf8+
{[%clk 0:00:41.7]} 47... Kh7 {[%clk 0:00:02.8]} 48. Rd7+ {[%clk 0:00:42]} 1-0

[Event "Early-Titled-Tuesday-Blitz-May-14-2024"]
[Site "Chess.com"]
[Date "2024.05.14"]
[Round "2"]
[White "baki83"]
[Black "Hope_6"]
[Result "1-0"]
[WhiteElo "2948"]
[BlackElo "2628"]
[TimeControl "180+1"]
[EndTime "8:18:20 PDT"]
[Termination "baki83 won by resignation"]

1. e4 {[%clk 0:03:00.9]} 1... c5 {[%clk 0:02:56.5]} 2. Nf3 {[%clk 0:03:01]} 2...
d6 {[%clk 0:02:55.9]} 3. Bb5+ {[%clk 0:03:00.8]} 3... Nd7 {[%clk 0:02:50.1]} 4.
O-O {[%clk 0:03:00]} 4... Nf6 {[%clk 0:02:49.2]} 5. Re1 {[%clk 0:02:59.8]} 5...
e6 {[%clk 0:02:45.3]} 6. c3 {[%clk 0:02:58.4]} 6... Be7 {[%clk 0:02:39.6]} 7. d4
{[%clk 0:02:57.8]} 7... cxd4 {[%clk 0:02:38.6]} 8. cxd4 {[%clk 0:02:57.7]} 8...
d5 {[%clk 0:02:38.7]} 9. e5 {[%clk 0:02:51.5]} 9... Ne4 {[%clk 0:02:37.5]} 10.
Nbd2 {[%clk 0:02:39]} 10... Nxd2 {[%clk 0:02:20.6]} 11. Bxd2 {[%clk 0:02:39.9]}
11... O-O {[%clk 0:02:20.2]} 12. Rc1 {[%clk 0:02:34.4]} 12... Nb6 {[%clk
0:02:16.9]} 13. g3 {[%clk 0:02:17.8]} 13... Bd7 {[%clk 0:02:12.3]} 14. Bd3
{[%clk 0:02:17.5]} 14... a6 {[%clk 0:02:06.1]} 15. Qe2 {[%clk 0:02:15.7]} 15...
Nc4 {[%clk 0:01:40.9]} 16. Bf4 {[%clk 0:02:15.6]} 16... Rc8 {[%clk 0:01:35.9]}
17. h4 {[%clk 0:02:14.3]} 17... Qa5 {[%clk 0:01:17.4]} 18. a3 {[%clk 0:01:44.7]}
18... Bb5 {[%clk 0:01:09.4]} 19. Bg5 {[%clk 0:01:42]} 19... Qd8 {[%clk
0:00:32.8]} 20. b3 {[%clk 0:01:29.4]} 20... Nb6 {[%clk 0:00:23.1]} 21. Rxc8
{[%clk 0:01:28.3]} 21... Nxc8 {[%clk 0:00:23]} 22. Bxb5 {[%clk 0:01:28.2]} 22...
axb5 {[%clk 0:00:22.2]} 23. Qxb5 {[%clk 0:01:28.4]} 23... h6 {[%clk 0:00:20.6]}
24. Bxe7 {[%clk 0:01:26.9]} 24... Qxe7 {[%clk 0:00:21.5]} 25. b4 {[%clk
0:01:24.9]} 25... Na7 {[%clk 0:00:21.4]} 26. Qc5 {[%clk 0:01:23.8]} 26... Qxc5
{[%clk 0:00:18.6]} 27. dxc5 {[%clk 0:01:23.6]} 27... Ra8 {[%clk 0:00:18.4]} 28.
Nd4 {[%clk 0:01:19.4]} 28... Nc6 {[%clk 0:00:18.1]} 29. Nxc6 {[%clk 0:01:19.3]}
29... bxc6 {[%clk 0:00:18.2]} 30. Re3 {[%clk 0:01:20.1]} 30... Kf8 {[%clk
0:00:18]} 31. Kf1 {[%clk 0:01:19.5]} 31... Ke7 {[%clk 0:00:18.4]} 32. Ke2 {[%clk
0:01:19.8]} 32... f6 {[%clk 0:00:18.8]} 33. f4 {[%clk 0:01:16.3]} 33... fxe5
{[%clk 0:00:17.9]} 34. fxe5 {[%clk 0:01:16.3]} 34... Rf8 {[%clk 0:00:18.1]} 35.
a4 {[%clk 0:01:12.5]} 35... Ra8 {[%clk 0:00:18.1]} 36. Ra3 {[%clk 0:01:12.3]}
36... Kd7 {[%clk 0:00:18.5]} 37. a5 {[%clk 0:01:02.5]} 37... Ra7 {[%clk
0:00:18.2]} 38. Rf3 {[%clk 0:01:01.3]} 38... Ke7 {[%clk 0:00:18.5]} 39. Kd2
{[%clk 0:01:00.6]} 39... Ra8 {[%clk 0:00:18.8]} 40. Kc3 {[%clk 0:01:00.5]} 40...
Ra7 {[%clk 0:00:17.5]} 41. Rf4 {[%clk 0:01:00.5]} 41... Ra8 {[%clk 0:00:17.6]}
42. h5 {[%clk 0:01:00.8]} 42... Rd8 {[%clk 0:00:17.4]} 43. Kb3 {[%clk
0:00:54.3]} 43... Rb8 {[%clk 0:00:17.8]} 44. Ka4 {[%clk 0:00:53]} 44... Rb7
{[%clk 0:00:16.8]} 45. a6 {[%clk 0:00:51.2]} 45... Rb8 {[%clk 0:00:17.2]} 46. b5
{[%clk 0:00:41.5]} 46... Rxb5 {[%clk 0:00:15.3]} 47. a7 {[%clk 0:00:36.5]} 47...
Rb1 {[%clk 0:00:15.2]} 48. Rf3 {[%clk 0:00:29.9]} 1-0

[Event "Early-Titled-Tuesday-Blitz-May-14-2024"]
[Site "Chess.com"]
[Date "2024.05.14"]
[Round "2"]
[White "LoaySameer"]
[Black "GMthekingindian"]
[Result "1-0"]
[WhiteElo "2534"]
[BlackElo "2301"]
[TimeControl "180+1"]
[EndTime "8:18:21 PDT"]
[Termination "LoaySameer won on time"]

1. Nf3 {[%clk 0:03:00.9]} 1... d5 {[%clk 0:02:59.4]} 2. g3 {[%clk 0:03:00.7]}
2... g6 {[%clk 0:03:00.1]} 3. Bg2 {[%clk 0:03:00.8]} 3... Bg7 {[%clk 0:03:00.8]}
4. O-O {[%clk 0:03:01.7]} 4... Nf6 {[%clk 0:03:00.7]} 5. d3 {[%clk 0:03:02.3]}
5... O-O {[%clk 0:02:59.4]} 6. c3 {[%clk 0:03:02.9]} 6... c5 {[%clk 0:02:59.1]}
7. Qa4 {[%clk 0:03:03.6]} 7... Nc6 {[%clk 0:02:59.2]} 8. Qh4 {[%clk 0:03:04]}
8... Re8 {[%clk 0:02:54]} 9. e4 {[%clk 0:03:03.9]} 9... d4 {[%clk 0:02:33.1]}
10. c4 {[%clk 0:02:55.9]} 10... a6 {[%clk 0:02:24.9]} 11. e5 {[%clk 0:02:30.9]}
11... Nd7 {[%clk 0:02:21.3]} 12. e6 {[%clk 0:01:41.7]} 12... fxe6 {[%clk
0:02:21.2]} 13. Ng5 {[%clk 0:01:42]} 13... Nf6 {[%clk 0:02:21.5]} 14. Re1 {[%clk
0:01:41.5]} 14... e5 {[%clk 0:02:21.5]} 15. Bd5+ {[%clk 0:01:38.6]} 15... e6
{[%clk 0:02:19.4]} 16. Bxc6 {[%clk 0:01:32.9]} 16... bxc6 {[%clk 0:02:19.5]} 17.
Rxe5 {[%clk 0:01:33.8]} 17... h6 {[%clk 0:01:59.2]} 18. Nf3 {[%clk 0:01:27.8]}
18... g5 {[%clk 0:01:52.5]} 19. Nxg5 {[%clk 0:01:14.3]} 19... hxg5 {[%clk
0:01:52.8]} 20. Bxg5 {[%clk 0:01:15.2]} 20... Rf8 {[%clk 0:01:47.7]} 21. Nd2
{[%clk 0:01:15.2]} 21... Qe8 {[%clk 0:01:30.2]} 22. Bxf6 {[%clk 0:00:43.8]}
22... Bxf6 {[%clk 0:01:27.1]} 23. Qg4+ {[%clk 0:00:44]} 23... Kf7 {[%clk
0:01:14.7]} 24. Rh5 {[%clk 0:00:33]} 24... Ke7 {[%clk 0:01:15.2]} 25. Ne4 {[%clk
0:00:23.8]} 25... Bd7 {[%clk 0:00:47.1]} 26. Nxc5 {[%clk 0:00:20.7]} 26... Rd8
{[%clk 0:00:33.4]} 27. Re1 {[%clk 0:00:20.3]} 27... e5 {[%clk 0:00:33.9]} 28.
Rh7+ {[%clk 0:00:19.9]} 28... Rf7 {[%clk 0:00:34]} 29. Qh5 {[%clk 0:00:20.4]}
29... Rxh7 {[%clk 0:00:32.1]} 30. Qxh7+ {[%clk 0:00:20.8]} 30... Qf7 {[%clk
0:00:32.5]} 31. Qe4 {[%clk 0:00:20.7]} 31... Bg7 {[%clk 0:00:09.3]} 32. f4
{[%clk 0:00:20.3]} 32... Kf8 {[%clk 0:00:07.1]} 33. Nxd7+ {[%clk 0:00:20.4]}
33... Qxd7 {[%clk 0:00:05.7]} 34. fxe5 {[%clk 0:00:20.7]} 34... Re8 {[%clk
0:00:03.5]} 35. Qh7 {[%clk 0:00:20.9]} 35... Re7 {[%clk 0:00:01.9]} 36. e6
{[%clk 0:00:14.2]} 36... Rxe6 {[%clk 0:00:02.1]} 37. Rf1+ {[%clk 0:00:14.9]}
37... Ke8 {[%clk 0:00:01.5]} 38. Qg8+ {[%clk 0:00:15.2]} 38... Ke7 {[%clk
0:00:01.3]} 39. Rf7+ {[%clk 0:00:14.9]} 39... Kd6 {[%clk 0:00:01.8]} 40. Rxd7+
{[%clk 0:00:15.8]} 40... Kxd7 {[%clk 0:00:02]} 41. Qxg7+ {[%clk 0:00:16.5]}
41... Re7 {[%clk 0:00:02.1]} 42. Qxd4+ {[%clk 0:00:17.2]} 1-0

[Event "Early-Titled-Tuesday-Blitz-May-14-2024"]
[Site "Chess.com"]
[Date "2024.05.14"]
[Round "2"]
[White "cristiano78"]
[Black "titledsquirrel2007"]
[Result "0-1"]
[WhiteElo "2260"]
[BlackElo "2517"]
[TimeControl "180+1"]
[EndTime "8:18:22 PDT"]
[Termination "titledsquirrel2007 won on time"]

1. d4 {[%clk 0:02:59.3]} 1... e6 {[%clk 0:02:56.8]} 2. c4 {[%clk 0:02:59]} 2...
f5 {[%clk 0:02:54.6]} 3. Nc3 {[%clk 0:02:59.1]} 3... Nf6 {[%clk 0:02:51.1]} 4.
g3 {[%clk 0:02:58.7]} 4... d5 {[%clk 0:02:47]} 5. Bg2 {[%clk 0:02:55.7]} 5... c6
{[%clk 0:02:46.7]} 6. a4 {[%clk 0:02:53.7]} 6... Bd6 {[%clk 0:02:45.7]} 7. b3
{[%clk 0:02:48.3]} 7... Qe7 {[%clk 0:02:41.2]} 8. Nf3 {[%clk 0:02:46.9]} 8...
O-O {[%clk 0:02:40.3]} 9. O-O {[%clk 0:02:46.5]} 9... b6 {[%clk 0:02:37.4]} 10.
Qc2 {[%clk 0:02:02.7]} 10... a5 {[%clk 0:02:34.9]} 11. Ne5 {[%clk 0:01:43.1]}
11... Nfd7 {[%clk 0:02:23.3]} 12. Nxd7 {[%clk 0:01:40.3]} 12... Nxd7 {[%clk
0:02:14.5]} 13. Bb2 {[%clk 0:01:28.1]} 13... Ba6 {[%clk 0:02:10.5]} 14. Rfe1
{[%clk 0:01:18.7]} 14... Nf6 {[%clk 0:02:04.5]} 15. e3 {[%clk 0:01:04.5]} 15...
Rac8 {[%clk 0:02:02.8]} 16. Bf1 {[%clk 0:00:59.9]} 16... Ne4 {[%clk 0:02:01.3]}
17. Nxe4 {[%clk 0:00:58.6]} 17... fxe4 {[%clk 0:01:57.7]} 18. c5 {[%clk
0:00:58.5]} 18... Bxf1 {[%clk 0:01:17.2]} 19. cxd6 {[%clk 0:00:57.2]} 19... Qxd6
{[%clk 0:01:17.5]} 20. Rxf1 {[%clk 0:00:56.5]} 20... Rf5 {[%clk 0:01:07.7]} 21.
Qe2 {[%clk 0:00:50.6]} 21... Qd7 {[%clk 0:01:05.8]} 22. Rac1 {[%clk 0:00:49.4]}
22... Rf3 {[%clk 0:00:55.5]} 23. Rc2 {[%clk 0:00:48.2]} 23... h5 {[%clk
0:00:51.3]} 24. Rfc1 {[%clk 0:00:46.4]} 24... h4 {[%clk 0:00:48.7]} 25. Bc3
{[%clk 0:00:38.7]} 25... hxg3 {[%clk 0:00:15]} 26. fxg3 {[%clk 0:00:38]} 26...
Qf7 {[%clk 0:00:15]} 27. Be1 {[%clk 0:00:36.9]} 27... Qh5 {[%clk 0:00:14.8]} 28.
Qg2 {[%clk 0:00:30.6]} 28... Rcf8 {[%clk 0:00:14.1]} 29. Rxc6 {[%clk 0:00:28.1]}
29... Rxe3 {[%clk 0:00:10.5]} 30. R6c2 {[%clk 0:00:15.9]} 30... Ref3 {[%clk
0:00:09.2]} 31. Rf2 {[%clk 0:00:13.7]} 31... Rxf2 {[%clk 0:00:07]} 32. Bxf2
{[%clk 0:00:12.7]} 32... Qe2 {[%clk 0:00:07.6]} 33. Re1 {[%clk 0:00:11.5]} 33...
Qd2 {[%clk 0:00:07.4]} 34. Qf1 {[%clk 0:00:03.4]} 34... Qc3 {[%clk 0:00:03.6]}
0-1

[Event "Early-Titled-Tuesday-Blitz-May-14-2024"]
[Site "Chess.com"]
[Date "2024.05.14"]
[Round "2"]
[White "bubeliang"]
[Black "mistrzemi"]
[Result "1-0"]
[WhiteElo "2855"]
[BlackElo "2435"]
[TimeControl "180+1"]
[EndTime "8:18:24 PDT"]
[Termination "bubeliang won on time"]

1. e4 {[%clk 0:03:00.9]} 1... e5 {[%clk 0:03:00.2]} 2. Nf3 {[%clk 0:02:58.3]}
2... Nc6 {[%clk 0:03:00.7]} 3. Bc4 {[%clk 0:02:58]} 3... Nf6 {[%clk 0:03:01]} 4.
d3 {[%clk 0:02:57.8]} 4... Be7 {[%clk 0:03:00]} 5. O-O {[%clk 0:02:55.8]} 5...
O-O {[%clk 0:03:00.3]} 6. c3 {[%clk 0:02:52.8]} 6... d6 {[%clk 0:02:43.4]} 7.
Re1 {[%clk 0:02:52.2]} 7... Kh8 {[%clk 0:02:38.6]} 8. h3 {[%clk 0:02:46]} 8...
Ng8 {[%clk 0:02:31.8]} 9. d4 {[%clk 0:02:39.2]} 9... f5 {[%clk 0:02:32.2]} 10.
dxe5 {[%clk 0:02:34.1]} 10... fxe4 {[%clk 0:02:32.1]} 11. Rxe4 {[%clk
0:02:33.3]} 11... dxe5 {[%clk 0:02:20.5]} 12. Qxd8 {[%clk 0:02:27.7]} 12... Rxd8
{[%clk 0:02:20.5]} 13. Re1 {[%clk 0:02:28.2]} 13... Nf6 {[%clk 0:02:09.7]} 14.
Ng5 {[%clk 0:02:21.8]} 14... Na5 {[%clk 0:01:32.8]} 15. Be6 {[%clk 0:01:39.6]}
15... Bxe6 {[%clk 0:01:29.8]} 16. Nxe6 {[%clk 0:01:40.5]} 16... Rd7 {[%clk
0:01:27.5]} 17. Be3 {[%clk 0:01:36.2]} 17... Nc6 {[%clk 0:01:24.8]} 18. Ng5
{[%clk 0:01:32.5]} 18... h6 {[%clk 0:01:20]} 19. Nf3 {[%clk 0:01:30.2]} 19...
Nd5 {[%clk 0:01:14.6]} 20. Nbd2 {[%clk 0:01:25.9]} 20... Nxe3 {[%clk 0:01:14.9]}
21. Rxe3 {[%clk 0:01:26.8]} 21... Bc5 {[%clk 0:01:15.4]} 22. Re2 {[%clk
0:01:26.2]} 22... Rad8 {[%clk 0:01:13.3]} 23. Ne4 {[%clk 0:01:25.2]} 23... Be7
{[%clk 0:01:08]} 24. Rae1 {[%clk 0:01:23.7]} 24... Kg8 {[%clk 0:01:06.8]} 25. g4
{[%clk 0:01:20.7]} 25... Kf7 {[%clk 0:01:06.5]} 26. Kg2 {[%clk 0:01:21]} 26...
g6 {[%clk 0:01:05.6]} 27. Nfd2 {[%clk 0:01:18.3]} 27... Bf8 {[%clk 0:01:01.5]}
28. a4 {[%clk 0:01:13.2]} 28... b6 {[%clk 0:00:59.2]} 29. Nc4 {[%clk 0:01:12.7]}
29... a5 {[%clk 0:00:57.3]} 30. Ned2 {[%clk 0:01:11.3]} 30... Bg7 {[%clk
0:00:49.4]} 31. Ne4 {[%clk 0:01:05.8]} 31... Bf8 {[%clk 0:00:49.1]} 32. Re3
{[%clk 0:01:02.9]} 32... Bg7 {[%clk 0:00:41.7]} 33. R1e2 {[%clk 0:01:01.6]}
33... Rd1 {[%clk 0:00:39.8]} 34. Ng3 {[%clk 0:00:54.1]} 34... Ra1 {[%clk
0:00:33.2]} 35. Re4 {[%clk 0:00:51.5]} 35... Rad1 {[%clk 0:00:17.9]} 36. Na3
{[%clk 0:00:50.7]} 36... R8d7 {[%clk 0:00:17.2]} 37. Nb5 {[%clk 0:00:50.6]}
37... Bf8 {[%clk 0:00:13.1]} 38. Rc4 {[%clk 0:00:49.7]} 38... Bc5 {[%clk
0:00:11.9]} 39. Ne4 {[%clk 0:00:50.3]} 39... R1d5 {[%clk 0:00:08.5]} 40. Nxc5
{[%clk 0:00:43.4]} 40... Rxc5 {[%clk 0:00:09.4]} 41. Rxc5 {[%clk 0:00:43.8]}
41... bxc5 {[%clk 0:00:09.6]} 42. Na3 {[%clk 0:00:44.7]} 42... Ke6 {[%clk
0:00:09.4]} 43. Nc4 {[%clk 0:00:40.3]} 43... Rd8 {[%clk 0:00:06.5]} 44. f4
{[%clk 0:00:38.3]} 44... Kd5 {[%clk 0:00:06.8]} 45. Nxe5 {[%clk 0:00:27.3]}
45... Nxe5 {[%clk 0:00:03.6]} 46. Rd2+ {[%clk 0:00:23.2]} 1-0

[Event "Early-Titled-Tuesday-Blitz-May-14-2024"]
[Site "Chess.com"]
[Date "2024.05.14"]
[Round "2"]
[White "jankarsten"]
[Black "MiguelBestard1981"]
[Result "1-0"]
[WhiteElo "2634"]
[BlackElo "2334"]
[TimeControl "180+1"]
[EndTime "8:18:25 PDT"]
[Termination "jankarsten won by checkmate"]

1. Nf3 {[%clk 0:03:00.9]} 1... d5 {[%clk 0:02:48.2]} 2. g3 {[%clk 0:02:59.9]}
2... Bf5 {[%clk 0:02:48.2]} 3. Bg2 {[%clk 0:02:59.9]} 3... e6 {[%clk 0:02:48.5]}
4. O-O {[%clk 0:03:00.5]} 4... h6 {[%clk 0:02:48]} 5. d3 {[%clk 0:03:00.7]} 5...
Nf6 {[%clk 0:02:47.3]} 6. Nfd2 {[%clk 0:03:00.8]} 6... Be7 {[%clk 0:02:47.2]} 7.
e4 {[%clk 0:03:01.4]} 7... Bh7 {[%clk 0:02:47.2]} 8. Nc3 {[%clk 0:03:01.8]} 8...
O-O {[%clk 0:02:45.8]} 9. f4 {[%clk 0:03:01.4]} 9... c5 {[%clk 0:02:45.4]} 10.
Qe2 {[%clk 0:03:00.2]} 10... Nc6 {[%clk 0:02:44.8]} 11. e5 {[%clk 0:02:54.5]}
11... Nd7 {[%clk 0:02:40.9]} 12. Nf3 {[%clk 0:02:51.1]} 12... a5 {[%clk
0:02:34.9]} 13. a4 {[%clk 0:02:49.8]} 13... Nd4 {[%clk 0:02:22.2]} 14. Qf2
{[%clk 0:02:48]} 14... Nxf3+ {[%clk 0:02:18.2]} 15. Bxf3 {[%clk 0:02:48.9]}
15... f6 {[%clk 0:02:12.8]} 16. exf6 {[%clk 0:02:37.8]} 16... Nxf6 {[%clk
0:02:12.5]} 17. Re1 {[%clk 0:02:36.4]} 17... Ra6 {[%clk 0:02:10.6]} 18. b3
{[%clk 0:02:24.8]} 18... Nd7 {[%clk 0:02:02.3]} 19. Bb2 {[%clk 0:02:12.6]} 19...
Bf6 {[%clk 0:02:02.2]} 20. Kg2 {[%clk 0:01:53.9]} 20... Nb8 {[%clk 0:02:01.3]}
21. Re2 {[%clk 0:01:34.3]} 21... Nc6 {[%clk 0:02:01]} 22. Rxe6 {[%clk
0:01:19.9]} 22... Nd4 {[%clk 0:01:53.1]} 23. Rxa6 {[%clk 0:01:17.4]} 23... bxa6
{[%clk 0:01:53.2]} 24. Nxd5 {[%clk 0:01:12.3]} 24... Nxf3 {[%clk 0:01:51.5]} 25.
Nxf6+ {[%clk 0:01:12.6]} 25... Rxf6 {[%clk 0:01:49]} 26. Qxf3 {[%clk 0:01:03.2]}
26... Re6 {[%clk 0:01:46.4]} 27. Kf2 {[%clk 0:01:02.7]} 27... Qd6 {[%clk
0:01:33.7]} 28. Re1 {[%clk 0:00:54]} 28... Bg6 {[%clk 0:01:28.7]} 29. f5 {[%clk
0:00:44.8]} 29... Rxe1 {[%clk 0:01:27.1]} 30. Kxe1 {[%clk 0:00:44.5]} 30... Be8
{[%clk 0:01:19.8]} 31. Qe4 {[%clk 0:00:43]} 31... Bc6 {[%clk 0:01:15.6]} 32.
Qe6+ {[%clk 0:00:37]} 32... Qxe6+ {[%clk 0:01:15.7]} 33. fxe6 {[%clk 0:00:37.9]}
33... Kf8 {[%clk 0:01:12.9]} 34. e7+ {[%clk 0:00:36.7]} 34... Kxe7 {[%clk
0:01:12.2]} 35. Bxg7 {[%clk 0:00:36.5]} 35... h5 {[%clk 0:01:12.6]} 36. Bc3
{[%clk 0:00:36.1]} 36... Ke6 {[%clk 0:01:11.7]} 37. Bxa5 {[%clk 0:00:35.6]}
37... Bf3 {[%clk 0:01:11.1]} 38. Kd2 {[%clk 0:00:35.4]} 38... Kd5 {[%clk
0:01:11.2]} 39. Bd8 {[%clk 0:00:35.5]} 39... Bg4 {[%clk 0:01:10.3]} 40. c4+
{[%clk 0:00:34.4]} 40... Kc6 {[%clk 0:01:08.4]} 41. Kc3 {[%clk 0:00:32.2]} 41...
Bd1 {[%clk 0:01:06.3]} 42. a5 {[%clk 0:00:27.7]} 42... Kd7 {[%clk 0:01:04.4]}
43. Bb6 {[%clk 0:00:25.4]} 43... Kc6 {[%clk 0:01:04.7]} 44. b4 {[%clk
0:00:25.5]} 44... cxb4+ {[%clk 0:01:02.8]} 45. Kxb4 {[%clk 0:00:26.4]} 45... Be2
{[%clk 0:01:00.5]} 46. d4 {[%clk 0:00:27.3]} 46... Bf1 {[%clk 0:00:59.3]} 47.
d5+ {[%clk 0:00:27.6]} 47... Kd7 {[%clk 0:00:58.2]} 48. Kc5 {[%clk 0:00:27.4]}
48... Be2 {[%clk 0:00:57.1]} 49. Kd4 {[%clk 0:00:28]} 49... Bf1 {[%clk
0:00:56.9]} 50. c5 {[%clk 0:00:28.6]} 50... Bb5 {[%clk 0:00:53.9]} 51. c6+
{[%clk 0:00:29.5]} 51... Kd6 {[%clk 0:00:48.7]} 52. Bc5+ {[%clk 0:00:28.1]}
52... Kc7 {[%clk 0:00:49.1]} 53. Bb4 {[%clk 0:00:27.1]} 53... Be2 {[%clk
0:00:46.3]} 54. Kc5 {[%clk 0:00:27.6]} 54... Bg4 {[%clk 0:00:43.9]} 55. d6+
{[%clk 0:00:26.2]} 55... Kb8 {[%clk 0:00:44.2]} 56. d7 {[%clk 0:00:24.4]} 56...
Kc7 {[%clk 0:00:43.7]} 57. Bd2 {[%clk 0:00:24.2]} 57... Bf3 {[%clk 0:00:38.8]}
58. Bf4+ {[%clk 0:00:25.1]} 58... Kd8 {[%clk 0:00:38.6]} 59. Bg5+ {[%clk
0:00:24.6]} 59... Kc7 {[%clk 0:00:38.4]} 60. d8=Q# {[%clk 0:00:25.5]} 1-0